bitfinex/quotes_SOLUSD_20250625
["timestamp","ask_amount","ask_price","bid_price","bid_amount"]
[1750847232487,16.0635947,146.01,146.0,88.7]
[1750847233077,6.84790796,146.03,146.0,88.7]
[1750847233308,9.21474874,146.02,146.0,88.7]
[1750847234878,16.06327588,146.02,146.0,88.7]
[1750847236177,9.21474874,146.03,145.99,9.21474874]
[1750847236376,9.21474874,146.03,145.99,97.91474874]
[1750847237002,9.21474874,146.03,145.99,104.76406422]
[1750847237203,9.21474874,146.03,145.99,95.54931548]
[1750847237388,16.06279994,146.03,145.99,95.54931548]
[1750847237583,9.21474874,146.03,145.99,95.54931548]
[1750847239175,16.06283901,146.03,145.99,88.7]
[1750847239383,16.06283901,146.03,145.99,95.54973754]
[1750847239609,9.21474874,146.04,145.99,104.76448628]
[1750847239812,9.21474874,146.04,146.0,9.21474874]
[1750847240914,16.06219741,146.04,145.99,104.76448628]
[1750847241918,9.21474874,146.03,145.99,88.7]
[1750847242122,9.21474874,146.03,145.99,95.54975403]
[1750847242424,9.21474874,146.03,145.99,104.76450277]
[1750847242595,6.84744867,146.04,145.99,104.76450277]
[1750847242796,9.21474874,146.06,146.01,9.21474874]
[1750847242993,15.87784874,146.08,146.03,9.21474874]
[1750847243321,6.84559821,146.08,146.04,7.0]
[1750847243527,16.06034695,146.08,146.04,95.7]
[1750847243698,26.0,146.09,146.04,95.7]
[1750847243699,6.8453149,146.09,146.04,104.91474874]
[1750847243894,9.21474874,146.08,146.04,111.76198267]
[1750847244400,6.8453149,146.09,146.04,102.54723393]
[1750847244725,16.06006364,146.09,146.04,111.76198267]
[1750847245220,32.84483012,146.1,146.04,102.54723393]
[1750847245415,42.05957886,146.1,146.05,9.21474874]
[1750847245724,9.21474874,146.09,146.04,102.54723393]
[1750847245899,16.06017843,146.09,146.04,111.76198267]
[1750847246292,9.21474874,146.08,146.04,95.7]
[1750847246524,9.21474874,146.05,146.04,95.7]
[1750847246704,9.21474874,146.05,146.04,7.0]
[1750847246911,26.0,146.08,146.04,7.0]
[1750847247105,9.21474874,146.06,146.04,7.0]
[1750847249335,9.21474874,146.05,146.04,7.0]
[1750847249513,35.21474874,146.05,146.04,7.0]
[1750847250040,42.06171895,146.05,146.04,7.0]
[1750847250532,42.06171895,146.05,146.0,7.0]
[1750847250707,9.21474874,146.02,146.0,7.0]
[1750847250908,32.84697021,146.05,146.0,7.0]
[1750847251135,9.21474874,146.03,146.0,7.0]
[1750847251913,32.84697021,146.05,146.0,7.0]
[1750847252228,9.21474874,146.03,146.0,7.0]
[1750847252522,9.21474874,146.02,146.0,7.0]
[1750847252724,9.21474874,146.01,145.92,88.7]
[1750847252912,9.21474874,145.99,145.94,9.21474874]
[1750847253112,9.21474874,145.99,145.93,13.85260056]
[1750847253314,9.21474874,145.99,145.94,9.21474874]
[1750847253534,9.21474874,145.97,145.93,16.21474874]
[1750847254128,26.0,146.01,145.93,16.21474874]
[1750847254129,9.21474874,145.96,145.93,7.0]
[1750847254335,26.0,146.03,145.95,9.21474874]
[1750847254545,9.21474874,146.02,145.98,9.21474874]
[1750847254710,9.21474874,146.01,145.97,9.21474874]
[1750847254905,26.0,146.03,145.97,9.21474874]
[1750847255125,9.21474874,146.01,145.97,9.21474874]
[1750847255538,9.21474874,146.01,145.98,6.85025345]
[1750847255725,9.21474874,146.02,145.98,6.85025345]
[1750847256427,9.21474874,146.02,145.98,16.06500219]
[1750847256630,9.21474874,146.02,145.98,6.85025345]
[1750847256823,9.21474874,146.02,145.98,16.06500219]
[1750847258225,26.0,146.05,145.98,16.06500219]
[1750847258442,26.0,146.03,146.0,9.21474874]
[1750847258615,26.0,146.03,146.01,7.0]
[1750847260240,26.0,146.03,146.01,13.84881098]
[1750847260942,9.21474874,146.05,146.01,23.06355972]
[1750847261149,26.0,146.05,146.01,23.06355972]
[1750847261440,35.21474874,146.05,146.01,23.06355972]
[1750847261644,35.21474874,146.05,146.01,13.84881098]
[1750847261948,6.84620216,146.07,146.02,9.21474874]
[1750847262140,9.21474874,146.06,146.02,9.21474874]
[1750847262435,6.5871,146.1,146.04,9.21474874]
[1750847262644,35.21474874,146.08,146.04,9.21474874]
[1750847262937,9.21474874,146.08,146.04,9.21474874]
[1750847263330,35.21474874,146.09,146.04,9.21474874]
[1750847263534,26.0,146.09,146.04,9.21474874]
[1750847263741,9.21474874,146.08,146.04,9.21474874]
[1750847264046,26.0,146.08,146.05,16.06171895]
[1750847264237,6.0724,146.14,146.07,9.21474874]
[1750847264422,6.0724,146.14,146.08,16.01474874]
[1750847264617,35.21474874,146.12,146.08,16.01474874]
[1750847264817,26.0,146.12,146.08,16.01474874]
[1750847265052,1.6079,146.15,146.1,9.21474874]
[1750847265053,9.21474874,146.15,146.1,9.21474874]
[1750847265218,6.84134911,146.17,146.1,9.21474874]
[1750847265219,35.21474874,146.14,146.1,9.21474874]
[1750847265418,35.21474874,146.14,146.09,9.21474874]
[1750847266030,35.21474874,146.14,146.09,16.05944695]
[1750847266031,26.0,146.14,146.09,16.05944695]
[1750847266236,9.21474874,146.1,146.08,6.8]
[1750847266543,9.21474874,146.09,146.08,6.8]
[1750847268244,16.05984422,146.09,146.08,6.8]
[1750847268424,6.84509548,146.09,146.08,6.8]
[1750847268619,16.05984422,146.09,146.08,6.8]
[1750847268842,9.21474874,146.09,146.08,6.8]
[1750847269642,16.05984422,146.09,146.08,6.8]
[1750847277250,34.70949308,146.09,146.08,6.8]
[1750847277447,51.8222318,146.09,146.03,6.8]
[1750847277648,9.21474874,146.04,146.03,6.8]
[1750847278252,9.21474874,146.05,146.03,6.8]
[1750847279150,32.84671322,146.06,146.03,6.8]
[1750847279461,9.21474874,146.05,146.03,6.8]
[1750847279643,6.84671322,146.06,146.03,6.8]
[1750847279843,9.21474874,146.05,146.03,6.8]
[1750847280231,35.21474874,146.06,146.03,6.8]
[1750847280543,35.21474874,146.06,146.03,13.64786074]
[1750847281332,35.21474874,146.06,146.03,6.8]
[1750847281559,9.21474874,146.06,146.03,13.64786273]
[1750847281754,9.21474874,146.08,146.04,9.21474874]
[1750847282057,9.21474874,146.09,146.04,9.21474874]
[1750847282240,9.21474874,146.08,146.04,9.21474874]
[1750847283049,9.21474874,146.08,146.04,16.06177898]
[1750847283254,9.21474874,146.07,146.03,22.86261325]
[1750847283642,9.21474874,146.08,146.04,9.21474874]
[1750847284158,9.21474874,146.07,146.03,6.8]
[1750847284341,9.21474874,146.05,146.03,6.8]
[1750847284950,16.06204625,146.05,146.03,6.8]
[1750847285458,6.84729751,146.05,146.03,6.8]
[1750847285765,16.06204625,146.05,146.03,6.8]
[1750847286359,9.21474874,146.04,146.03,6.8]
[1750847286564,9.21474874,146.05,146.0,8.38401876]
[1750847286761,9.21474874,146.05,146.03,6.8]
[1750847286960,6.84556407,146.08,146.03,6.8]
[1750847287262,9.21474874,146.05,146.03,6.8]
[1750847287668,9.21474874,146.04,146.03,6.8]
[1750847287852,6.84556407,146.08,146.03,6.8]
[1750847288051,9.21474874,146.05,146.03,6.8]
[1750847288547,9.21474874,146.04,146.03,6.8]
[1750847288949,16.06218779,146.04,146.03,6.8]
[1750847290552,9.21474874,146.04,146.03,6.8]
[1750847292072,32.84668367,146.06,146.03,6.8]
[1750847292286,9.21474874,146.04,146.03,6.8]
[1750847295970,18.64964886,146.01,145.93,1.5065]
[1750847296176,9.21474874,146.0,145.95,9.21474874]
[1750847296379,9.21474874,146.02,145.98,9.21474874]
[1750847296677,35.21474874,146.03,145.98,9.21474874]
[1750847297635,16.06225593,146.04,145.99,9.21474874]
[1750847297753,9.21474874,146.04,146.0,9.21474874]
[1750847297952,42.06189072,146.05,146.01,6.66]
[1750847298388,38.36960885,146.05,146.01,6.66]
[1750847298758,5.52246687,146.02,146.01,6.66]
[1750847300382,23.33639686,146.12,146.01,54.33401492]
[1750847300592,6.84415851,146.11,146.04,9.21093024]
[1750847300778,9.21093024,146.1,146.05,9.21093024]
[1750847301089,9.21093024,146.13,146.08,9.21093024]
[1750847301290,9.21093024,146.14,146.09,6.66]
[1750847301497,9.21093024,146.12,146.09,6.66]
[1750847301874,9.21093024,146.1,146.09,6.66]
[1750847303873,9.21093024,146.11,146.09,6.66]
[1750847304778,9.21093024,146.13,146.09,13.5050863]
[1750847304979,26.0,146.12,146.09,22.71601654]
[1750847305177,26.0,146.12,146.09,6.66]
[1750847305498,26.0,146.12,146.09,13.50509215]
[1750847305683,26.0,146.12,146.09,22.71602239]
[1750847306289,26.0,146.12,146.09,6.66]
[1750847307788,26.0,146.12,146.09,13.50505697]
[1750847307998,35.21093024,146.14,146.1,9.21093024]
[1750847308383,42.05368878,146.14,146.09,13.50505697]
[1750847308593,42.05368878,146.14,146.09,22.71598721]
[1750847310007,9.21093024,146.14,146.09,22.71598721]
[1750847311181,32.84248693,146.15,146.09,22.71598721]
[1750847311385,42.05341717,146.15,146.1,9.21093024]
[1750847311589,6.84190435,146.16,146.11,9.21093024]
[1750847311782,16.05283459,146.16,146.11,9.21093024]
[1750847312098,16.05283459,146.16,146.11,16.05495663]
[1750847312498,42.05253875,146.17,146.11,6.84402639]
[1750847312705,42.05253875,146.17,146.12,38.23093024]
[1750847313078,9.21093024,146.16,146.12,29.02]
[1750847313285,9.21093024,146.14,146.12,29.02]
[1750847314391,32.84193735,146.16,146.12,38.23093024]
[1750847314620,16.05286759,146.16,146.12,38.23093024]
[1750847315198,9.21093024,146.15,146.12,29.02]
[1750847315919,6.84193735,146.16,146.12,29.02]
[1750847316087,16.05326934,146.15,146.12,29.02]
[1750847317507,9.21093024,146.13,146.09,44.85093024]
[1750847317690,9.21093024,146.13,146.09,133.55093024]
[1750847317893,32.8423391,146.15,146.09,124.34]
[1750847318190,42.05326934,146.15,146.1,9.21093024]
[1750847318391,16.05326934,146.15,146.11,9.21093024]
[1750847318779,16.05326934,146.15,146.1,97.91093024]
[1750847319085,9.21093024,146.12,146.09,124.34]
[1750847320128,16.05502087,146.12,146.09,124.34]
[1750847320409,12.36137205,146.12,146.09,124.34]
[1750847321112,12.36137205,146.12,146.09,95.36]
[1750847321510,12.36137205,146.12,146.1,6.66]
[1750847322617,5.51728142,146.12,146.1,6.66]
[1750847322990,5.51728142,146.13,146.1,6.66]
[1750847324499,12.36082845,146.13,146.1,6.66]
[1750847324824,5.51728142,146.12,146.1,95.36]
[1750847325211,6.84354703,146.13,146.1,95.36]
[1750847325212,12.36082845,146.13,146.1,95.36]
[1750847326005,1.5023,146.19,146.12,5.51728142]
[1750847326325,1.4558349,146.2,146.17,5.51728142]
[1750847326504,1.4558349,146.2,146.18,6.58]
[1750847327019,1.4558349,146.2,146.18,18.93808056]
[1750847327214,1.4558349,146.2,146.19,28.94]
[1750847334211,1.4558349,146.2,146.19,41.29769458]
[1750847338119,1.4558349,146.2,146.19,41.29769458]
[1750847342023,1.4558349,146.2,146.19,129.99769458]
[1750847342227,5.51728142,146.26,146.21,5.51728142]
[1750847342435,5.51728142,146.26,146.22,28.82]
[1750847342676,5.51728142,146.26,146.22,34.33728142]
[1750847342939,5.51728142,146.25,146.22,28.82]
[1750847344230,12.35492575,146.25,146.22,28.82]
[1750847346222,6.83734763,146.26,146.22,34.33728142]
[1750847346422,12.35462905,146.26,146.22,34.33728142]
[1750847346625,12.35462905,146.26,146.22,28.82]
[1750847346825,5.51728142,146.25,146.22,28.82]
[1750847348051,5.51728142,146.24,146.22,28.82]
[1750847348550,12.35529941,146.25,146.22,28.82]
[1750847349046,6.83801799,146.25,146.22,28.82]
[1750847349247,12.35529941,146.25,146.22,28.82]
[1750847352861,6.83801799,146.25,146.22,28.82]
[1750847353149,12.35529941,146.25,146.22,28.82]
[1750847353942,6.83801799,146.25,146.22,28.82]
[1750847354146,12.35529941,146.25,146.22,28.82]
[1750847357450,5.51728142,146.23,146.19,28.68]
[1750847357757,27.606,146.22,146.17,6.44]
[1750847357926,5.51728142,146.19,146.17,6.44]
[1750847358543,5.51728142,146.18,146.17,6.44]
[1750847359061,5.51728142,146.19,146.17,6.44]
[1750847359236,5.51728142,146.2,146.17,6.44]
[1750847359431,5.51728142,146.22,146.17,18.79861606]
[1750847359627,31.51728142,146.23,146.18,34.25728142]
[1750847359857,26.0,146.25,146.19,5.51728142]
[1750847360035,1.5339,146.26,146.2,5.51728142]
[1750847360236,5.51728142,146.24,146.2,5.51728142]
[1750847361168,13.3930769,146.27,146.22,6.83900971]
[1750847361169,5.51728142,146.26,146.22,6.83900971]
[1750847361452,5.51728142,146.26,146.22,12.35629113]
[1750847361667,5.51728142,146.27,146.22,12.35629113]
[1750847361847,5.51728142,146.27,146.23,5.51728142]
[1750847362050,5.51728142,146.27,146.24,6.44]
[1750847362562,5.51728142,146.25,146.21,6.44]
[1750847362733,5.51728142,146.22,146.21,6.44]
[1750847363143,12.35629113,146.22,146.21,6.44]
[1750847364862,57.00593999,146.22,146.21,6.44]
[1750847365071,74.10346426,146.22,146.16,6.44]
[1750847365235,5.51728142,146.17,146.16,6.44]
[1750847366170,12.35863053,146.17,146.16,6.44]
[1750847368136,6.84134911,146.17,146.16,6.44]
[1750847368336,12.35863053,146.17,146.16,6.44]
[1750847371454,5.51728142,146.18,146.16,6.44]
[1750847371754,12.35799567,146.19,146.16,6.44]
[1750847371944,5.51728142,146.19,146.16,6.44]
[1750847372152,5.51728142,146.17,146.16,6.44]
[1750847374268,12.35863053,146.17,146.16,6.44]
[1750847374573,26.0,146.19,146.16,6.44]
[1750847374744,5.51728142,146.17,146.16,6.44]
[1750847375755,12.35843312,146.18,146.16,6.44]
[1750847378076,5.51728142,146.18,146.16,6.44]
[1750847378976,12.35740853,146.2,146.16,6.44]
[1750847379673,5.51728142,146.2,146.16,101.98169972]
[1750847380476,5.51728142,146.19,146.16,95.14]
[1750847382774,5.51728142,146.18,146.16,95.14]
[1750847383463,5.51728142,146.17,146.16,6.44]
[1750847383657,49.9415323,146.19,146.16,6.44]
[1750847383878,5.51728142,146.17,146.16,6.44]
[1750847384966,12.35863053,146.17,146.16,6.44]
[1750847391274,35.80967493,146.23,146.16,35.06]
[1750847391275,32.83900971,146.22,146.16,35.06]
[1750847391582,5.51728142,146.18,146.16,6.44]
[1750847392079,5.51728142,146.19,146.16,6.44]
[1750847393576,6.8401655,146.2,146.16,18.79901547]
[1750847393577,5.51728142,146.2,146.16,18.79901547]
[1750847393776,5.51728142,146.19,146.16,6.44]
[1750847394364,5.51728142,146.18,146.16,6.44]
[1750847395684,12.35793652,146.19,146.16,6.44]
[1750847395982,12.35775049,146.19,146.16,6.44]
[1750847396391,6.84046907,146.19,146.16,6.44]
[1750847396688,12.35775049,146.19,146.16,6.44]
[1750847397689,6.83947746,146.21,146.16,6.44]
[1750847398062,5.51728142,146.2,146.16,6.44]
[1750847398263,5.51728142,146.19,146.16,6.44]
[1750847399493,29.04218221,146.21,146.16,6.44]
[1750847399680,6.84041316,146.19,146.16,6.44]
[1750847400376,5.51728142,146.21,146.17,5.51728142]
[1750847400891,5.51728142,146.18,146.16,6.44]
[1750847401097,5.51728142,146.17,146.16,6.44]
[1750847401274,31.51728142,146.19,146.16,6.44]
[1750847401672,6.8408811,146.18,146.16,6.44]
[1750847401898,38.35788849,146.19,146.16,6.44]
[1750847403263,5.51728142,146.18,146.16,6.44]
[1750847403492,20.26504886,146.23,146.17,28.62]
[1750847403493,12.35582344,146.23,146.17,28.62]
[1750847403695,12.35582344,146.23,146.18,5.51728142]
[1750847404196,5.10778856,146.24,146.2,5.51728142]
[1750847404374,5.51728142,146.25,146.21,5.51728142]
[1750847404704,5.51728142,146.25,146.16,1.5028]
[1750847404705,25.48728021,146.25,146.16,1.5028]
[1750847404878,5.51728142,146.18,146.16,6.4]
[1750847405078,32.75578856,146.23,146.16,6.4]
[1750847405404,5.51728142,146.17,146.16,6.4]
[1750847405893,12.35863053,146.17,146.16,6.4]
[1750847406066,5.51728142,146.17,146.16,6.4]
[1750847406874,12.35863053,146.17,146.16,6.4]
[1750847407298,31.00827939,146.17,146.16,6.4]
[1750847407612,36.11606795,146.17,146.16,6.4]
[1750847410233,62.11606795,146.17,146.16,6.4]
[1750847410500,79.21944073,146.17,146.11,6.4]
[1750847410700,5.51728142,146.12,146.11,6.4]
[1750847411385,12.36097153,146.12,146.11,6.4]
[1750847412594,5.51728142,146.13,146.11,6.4]
[1750847413183,5.51728142,146.12,146.11,6.4]
[1750847413504,12.36097153,146.12,146.11,6.4]
[1750847417087,31.01062039,146.12,146.11,6.4]
[1750847417985,18.64964886,146.11,146.06,50.74]
[1750847418198,5.51728142,146.07,146.06,50.74]
[1750847418690,13.30179011,146.12,146.06,50.74]
[1750847418891,12.36097153,146.12,146.08,5.51728142]
[1750847419204,12.36097153,146.12,146.07,5.51728142]
[1750847419505,5.51728142,146.11,146.07,5.51728142]
[1750847419705,12.36148043,146.11,146.06,56.25728142]
[1750847420080,5.51728142,146.11,146.07,5.51728142]
[1750847420279,5.51728142,146.09,146.06,44.3]
[1750847420496,26.0,146.08,146.07,6.44]
[1750847420694,31.51728142,146.08,146.01,11.55048142]
[1750847420999,18.64964886,146.07,146.02,6.44]
[1750847421707,6.84650143,146.06,146.02,6.44]
[1750847422008,5.51728142,146.05,146.02,6.44]
[1750847422409,5.51728142,146.04,146.02,6.44]
[1750847422611,5.51728142,146.05,146.02,6.44]
[1750847422797,6.84650143,146.06,146.02,6.44]
[1750847422798,12.36378285,146.06,146.02,6.44]
[1750847422999,26.0,146.07,146.04,5.51728142]
[1750847423203,26.0,146.07,146.02,13.28833781]
[1750847423407,31.51728142,146.07,146.02,18.80561923]
[1750847423799,31.51728142,146.07,146.03,5.51728142]
[1750847424307,26.0,146.07,146.02,13.28833781]
[1750847424504,31.51728142,146.07,146.03,5.51728142]
[1750847424811,31.51728142,146.07,146.02,13.28833781]
[1750847425012,5.51728142,146.06,146.02,13.28833781]
[1750847425226,5.51728142,146.06,146.02,18.80561923]
[1750847425420,5.51728142,146.06,146.02,13.28833781]
[1750847425716,12.36436813,146.05,146.02,6.44]
[1750847426098,5.51728142,146.04,146.02,6.44]
[1750847426500,26.0,146.07,146.03,5.51728142]
[1750847426711,32.84611356,146.07,146.04,5.51728142]
[1750847427295,32.84611356,146.07,146.02,13.28824373]
[1750847427495,32.84611356,146.07,146.03,5.51728142]
[1750847427700,32.84614916,146.07,146.03,5.51728142]
[1750847427906,38.36343058,146.07,146.03,5.51728142]
[1750847428627,5.51728142,146.06,146.02,18.80552515]
[1750847429123,12.36381002,146.06,146.02,18.80552515]
[1750847429325,5.51728142,146.05,146.02,13.28831657]
[1750847429507,5.51728142,146.06,146.02,6.44]
[1750847429823,38.36339582,146.07,146.02,11.95728142]
[1750847430013,32.8461144,146.07,146.02,6.44]
[1750847430332,5.51728142,146.03,146.02,6.44]
[1750847431233,12.36518938,146.03,146.02,6.44]
[1750847431440,12.36518938,146.03,145.96,1.662]
[1750847431637,5.51728142,146.03,145.99,6.44]
[1750847431924,31.51728142,146.06,145.99,6.44]
[1750847432099,5.51728142,146.04,145.99,11.95728142]
[1750847432499,31.51728142,146.03,145.99,11.95728142]
[1750847432752,31.51728142,146.03,145.99,6.44]
[1750847432914,26.0,146.03,145.99,11.95728142]
[1750847433230,26.0,146.03,146.0,5.51728142]
[1750847433726,38.36525496,146.03,145.99,6.44]
[1750847434230,5.51728142,146.01,145.99,6.44]
[1750847434427,5.51728142,146.01,146.0,6.44]
[1750847435435,12.36612738,146.01,146.0,6.44]
[1750847435739,31.01577624,146.01,146.0,6.44]
[1750847436302,31.51728142,146.01,146.0,6.44]
[1750847436520,5.51728142,146.03,146.0,6.44]
[1750847436848,5.51728142,146.05,146.01,5.51728142]
[1750847437138,31.51728142,146.05,146.01,5.51728142]
[1750847437324,6.84743905,146.04,146.01,5.51728142]
[1750847437826,12.36472047,146.04,146.0,11.95728142]
[1750847438016,12.36472047,146.04,146.0,6.44]
[1750847438416,26.0,146.05,146.0,6.44]
[1750847438417,26.0,146.05,146.0,13.28926065]
[1750847438717,5.51728142,146.09,146.04,5.51728142]
[1750847438925,5.51728142,146.07,146.03,5.51728142]
[1750847439330,5.51728142,146.07,146.01,6.5369]
[1750847439522,12.36251827,146.09,146.04,5.51728142]
[1750847439731,25.49445987,146.1,146.05,5.51728142]
[1750847440040,31.51728142,146.09,146.05,5.51728142]
[1750847440839,31.51728142,146.09,146.02,6.84837693]
[1750847440840,5.51728142,146.08,146.02,6.84837693]
[1750847441014,5.51728142,146.08,146.04,5.51728142]
[1750847441625,6.84556407,146.08,146.04,5.51728142]
[1750847441826,26.0,146.09,146.05,5.51728142]
[1750847442115,38.36238142,146.09,146.05,5.51728142]
[1750847442633,26.0,146.09,146.05,5.51728142]
[1750847443740,26.0,146.09,146.05,12.364197]
[1750847443941,38.36245155,146.09,146.05,5.51728142]
[1750847444541,38.36245155,146.09,146.04,13.86832566]
[1750847444724,31.51728142,146.09,146.04,13.86832566]
[1750847445040,31.51728142,146.09,146.05,5.51728142]
[1750847445338,26.0,146.09,146.05,5.51728142]
[1750847447243,38.36238996,146.09,146.07,6.44]
[1750847449860,5.51728142,146.08,146.07,6.44]
[1750847450067,12.36284549,146.08,146.07,6.44]
[1750847450838,6.84556407,146.08,146.07,6.44]
[1750847451047,38.36256016,146.09,146.07,6.44]
[1750847451418,32.84527874,146.09,146.07,6.44]
[1750847451617,38.36256016,146.09,146.07,6.44]
[1750847451917,5.51728142,146.08,146.07,6.44]
[1750847453047,24.16693028,146.08,146.07,6.44]
[1750847454119,36.52977577,146.08,146.07,6.44]
[1750847454519,26.0,146.05,146.02,6.44]
[1750847454736,5.51728142,146.03,146.02,6.44]
[1750847455816,5.51728142,146.04,146.02,6.44]
[1750847456021,12.36472589,146.04,146.02,6.44]
[1750847457444,5.51728142,146.04,146.02,6.44]
[1750847457643,38.36428793,146.05,146.02,6.44]
[1750847458951,31.51728142,146.05,146.02,6.44]
[1750847459449,31.51728142,146.07,146.02,18.80564387]
[1750847459637,5.51728142,146.06,146.02,18.80564387]
[1750847463734,5.51728142,146.06,146.02,107.50564387]
[1750847464154,32.84641849,146.07,146.03,5.51728142]
[1750847464155,38.36369991,146.07,146.03,5.51728142]
[1750847465456,26.0,146.07,146.03,5.51728142]
[1750847465753,26.0,146.07,146.04,5.51728142]
[1750847465926,5.51728142,146.09,146.04,5.51728142]
[1750847466131,31.51728142,146.09,146.04,5.51728142]
[1750847466437,5.51728142,146.08,146.04,5.51728142]
[1750847466948,5.51728142,146.08,146.04,12.36457651]
[1750847469859,5.51728142,146.08,146.04,101.06457651]
[1750847471147,12.36289105,146.08,146.04,101.06457651]
[1750847471339,5.51728142,146.06,146.04,88.7]
[1750847471862,5.51728142,146.05,146.02,6.44]
[1750847472161,5.51728142,146.03,146.02,6.44]
[1750847472631,50.16693028,146.03,146.02,6.44]
[1750847472836,24.16693028,146.03,146.02,6.44]
[1750847473138,31.01483824,146.03,146.02,6.44]
[1750847473346,26.0,146.0,145.97,6.44]
[1750847473657,5.51728142,145.98,145.97,6.44]
[1750847474664,5.51728142,145.99,145.97,6.44]
[1750847474967,5.51728142,145.98,145.97,6.44]
[1750847475461,6.84978423,145.99,145.97,6.44]
[1750847475666,5.51728142,145.98,145.97,6.44]
[1750847476165,6.84978423,145.99,145.97,6.44]
[1750847476371,5.51728142,145.99,145.97,6.44]
[1750847476866,35.76941877,146.03,145.97,6.44]
[1750847476867,12.36631914,146.01,145.97,11.95728142]
[1750847477568,12.36631914,146.01,145.97,6.44]
[1750847478369,5.51728142,146.0,145.97,6.44]
[1750847478667,12.36631914,146.01,145.97,18.807961]
[1750847479548,5.51728142,145.98,145.93,44.32]
[1750847479767,5.51728142,145.95,145.94,6.42]
[1750847481666,5.51728142,145.96,145.94,6.42]
[1750847483584,26.0,145.97,145.94,18.7892514]
[1750847483791,31.51728142,145.99,145.94,18.7892514]
[1750847484290,5.51728142,145.99,145.94,18.7892514]
[1750847484580,5.51728142,145.98,145.94,6.42]
[1750847484883,6.85038355,145.98,145.94,13.27207696]
[1750847485094,12.36766497,145.98,145.94,18.78935838]
[1750847485396,12.36766497,145.98,145.94,13.27207696]
[1750847485896,12.36766497,145.98,145.94,18.78935838]
[1750847486076,5.51728142,145.97,145.94,6.42]
[1750847486592,5.51728142,145.96,145.94,6.42]
[1750847488786,5.51728142,145.95,145.94,6.42]
[1750847489664,12.36855638,145.96,145.94,6.42]
[1750847490794,5.51728142,145.95,145.94,6.42]
[1750847491703,5.51728142,145.96,145.94,6.42]
[1750847491992,5.51728142,145.97,145.94,6.42]
[1750847492467,5.51728142,145.96,145.94,6.42]
[1750847492879,6.85166152,145.95,145.94,6.42]
[1750847493192,12.36894294,145.95,145.94,6.42]
[1750847493694,6.85166152,145.95,145.94,6.42]
[1750847495169,5.51728142,145.96,145.94,6.42]
[1750847495170,12.36868709,145.96,145.94,6.42]
[1750847496396,12.36850639,145.96,145.94,6.42]
[1750847496580,5.51728142,145.95,145.94,6.42]
[1750847497096,31.51728142,145.95,145.94,6.42]
[1750847497305,26.0,145.95,145.94,6.42]
[1750847499594,38.36894294,145.95,145.94,6.42]
[1750847502103,32.85166152,145.95,145.94,6.42]
[1750847502302,38.36894294,145.95,145.94,6.42]
[1750847502604,57.0185918,145.95,145.94,6.42]
[1750847509396,38.36894294,145.95,145.94,6.42]
[1750847514699,38.36894294,145.95,145.94,6.42]
[1750847514904,32.85166152,145.95,145.94,6.42]
[1750847515107,38.36894294,145.95,145.94,6.42]
[1750847516910,32.85166152,145.95,145.94,6.42]
[1750847517314,38.36894294,145.95,145.94,6.42]
[1750847517840,57.0185918,145.95,145.94,6.42]
[1750847519027,57.0185918,145.95,145.89,11.93728142]
[1750847519329,5.51728142,145.94,145.89,13.27446205]
[1750847519520,5.51728142,145.94,145.89,18.79174347]
[1750847519723,5.51728142,145.94,145.89,11.93728142]
[1750847521137,5.51728142,145.93,145.89,6.42]
[1750847521296,5.51728142,145.93,145.89,11.93728142]
[1750847521694,18.64964886,145.94,145.9,5.51728142]
[1750847521929,24.16693028,145.94,145.9,5.51728142]
[1750847522101,6.85260056,145.93,145.9,5.51728142]
[1750847522305,6.85219733,145.94,145.9,5.51728142]
[1750847522493,12.36947875,145.94,145.9,5.51728142]
[1750847523002,5.51728142,145.92,145.89,6.42]
[1750847523199,26.0,145.9,145.83,6.1122]
[1750847523510,26.0,145.9,145.86,5.51728142]
[1750847524316,6.8544794,145.89,145.86,5.51728142]
[1750847526745,38.37140544,145.9,145.86,5.51728142]
[1750847527049,32.85327158,145.92,145.89,5.51728142]
[1750847527534,38.370553,145.92,145.88,5.51728142]